[Event "Live Chess"]
[Site "Chess.com"]
[Date "2011.01.24"]
[Round "-"]
[White "hipposcottimus"]
[Black "dickensian"]
[Result "0-1"]
[CurrentPosition "8/3rk1r1/P6R/4p3/2pb4/8/6PP/R6K b - -"]
[Timezone "UTC"]
[ECO "B07"]
[ECOUrl "https://www.chess.com/openings/Pirc-Defense-2.d4-Nf6-3.Bd3-g6"]
[UTCDate "2011.01.24"]
[UTCTime "01:58:23"]
[WhiteElo "1435"]
[BlackElo "1435"]
[TimeControl "120+12"]
[Termination "dickensian won by resignation"]
[StartTime "01:58:23"]
[EndDate "2011.01.24"]
[EndTime "02:15:05"]
[Link "https://www.chess.com/game/live/90725175"]

1. e4 {[%clk 0:02:00]} 1... d6 {[%clk 0:02:00]} 2. d4 {[%clk 0:02:10.7]} 2... Nf6 {[%clk 0:02:10]} 3. Bd3 {[%clk 0:02:15.5]} 3... g6 {[%clk 0:02:20.6]} 4. c4 {[%clk 0:02:24.8]} 4... Bg7 {[%clk 0:01:42.6]} 5. f4 {[%clk 0:02:18.8]} 5... c5 {[%clk 0:01:13.7]} 6. e5 {[%clk 0:02:16.1]} 6... dxe5 {[%clk 0:01:19.2]} 7. fxe5 {[%clk 0:02:26.9]} 7... Nfd7 {[%clk 0:01:25.2]} 8. e6 {[%clk 0:02:12.7]} 8... fxe6 {[%clk 0:01:31]} 9. Qg4 {[%clk 0:01:26.8]} 9... Nf6 {[%clk 0:01:15]} 10. Qh4 {[%clk 0:00:39.2]} 10... Qxd4 {[%clk 0:01:21.5]} 11. Bxg6+ {[%clk 0:00:43.4]} 11... hxg6 {[%clk 0:01:15.7]} 12. Qg5 {[%clk 0:00:28.1]} 12... Qe4+ {[%clk 0:00:40.4]} 13. Be3 {[%clk 0:00:37.7]} 13... Qf5 {[%clk 0:00:31.5]} 14. Nf3 {[%clk 0:00:41.7]} 14... Qxg5 {[%clk 0:00:41.8]} 15. Nxg5 {[%clk 0:00:48.7]} 15... b6 {[%clk 0:00:43.8]} 16. O-O {[%clk 0:00:59.3]} 16... Nc6 {[%clk 0:00:38.2]} 17. Nc3 {[%clk 0:01:07.4]} 17... O-O {[%clk 0:00:43.8]} 18. Rae1 {[%clk 0:00:48.8]} 18... Nd4 {[%clk 0:00:49.1]} 19. Nb5 {[%clk 0:00:33.3]} 19... Nc2 {[%clk 0:00:37.3]} 20. Re2 {[%clk 0:00:36.3]} 20... Nxe3 {[%clk 0:00:46.2]} 21. Rxe3 {[%clk 0:00:47.9]} 21... Bd7 {[%clk 0:00:50.3]} 22. Nxe6 {[%clk 0:00:50.8]} 22... Bxe6 {[%clk 0:00:57.1]} 23. Rxe6 {[%clk 0:01:02.5]} 23... Rf7 {[%clk 0:01:00.7]} 24. Rfe1 {[%clk 0:00:55.9]} 24... a6 {[%clk 0:00:54.7]} 25. Nc7 {[%clk 0:01:02.1]} 25... Ra7 {[%clk 0:00:55.7]} 26. Nd5 {[%clk 0:00:47.6]} 26... Nxd5 {[%clk 0:00:51.4]} 27. cxd5 {[%clk 0:00:55.4]} 27... Bxb2 {[%clk 0:00:59.9]} 28. Rxg6+ {[%clk 0:01:02.9]} 28... Rg7 {[%clk 0:01:08.3]} 29. Rge6 {[%clk 0:01:05.8]} 29... Bd4+ {[%clk 0:01:14.5]} 30. Kh1 {[%clk 0:01:13.7]} 30... Rd7 {[%clk 0:01:15.4]} 31. Rxb6 {[%clk 0:01:15.4]} 31... Rxd5 {[%clk 0:01:23.3]} 32. Rxa6 {[%clk 0:01:25.9]} 32... Rd7 {[%clk 0:01:06.5]} 33. Rd1 {[%clk 0:01:23.1]} 33... Kf7 {[%clk 0:01:05.1]} 34. a4 {[%clk 0:01:27]} 34... e6 {[%clk 0:01:07.6]} 35. a5 {[%clk 0:01:22.9]} 35... e5 {[%clk 0:01:15.5]} 36. Rh6 {[%clk 0:01:11.1]} 36... Ke7 {[%clk 0:01:15.7]} 37. a6 {[%clk 0:01:19.6]} 37... c4 {[%clk 0:01:17.8]} 38. Ra1 {[%clk 0:01:19.4]} 0-1

[Event "Live Chess"]
[Site "Chess.com"]
[Date "2011.01.24"]
[Round "-"]
[White "dickensian"]
[Black "hipposcottimus"]
[Result "1-0"]
[CurrentPosition "Q7/3N4/3Q4/2Q5/8/3k4/8/5K2 b - -"]
[Timezone "UTC"]
[ECO "D00"]
[ECOUrl "https://www.chess.com/openings/Queens-Pawn-Opening-Blackmar-Diemer-Vienna-Variation"]
[UTCDate "2011.01.24"]
[UTCTime "01:38:28"]
[WhiteElo "1427"]
[BlackElo "1443"]
[TimeControl "120+12"]
[Termination "dickensian won by checkmate"]
[StartTime "01:38:28"]
[EndDate "2011.01.24"]
[EndTime "01:56:58"]
[Link "https://www.chess.com/game/live/90720935"]

1. d4 {[%clk 0:02:00]} 1... d5 {[%clk 0:02:00]} 2. e4 {[%clk 0:02:10.6]} 2... dxe4 {[%clk 0:02:09]} 3. Nc3 {[%clk 0:02:21.4]} 3... Nf6 {[%clk 0:02:14.3]} 4. f3 {[%clk 0:02:32]} 4... Bf5 {[%clk 0:02:13]} 5. Qe2 {[%clk 0:02:37.6]} 5... Nc6 {[%clk 0:02:12.5]} 6. Qb5 {[%clk 0:02:34.8]} 6... e6 {[%clk 0:02:11.7]} 7. fxe4 {[%clk 0:02:40.1]} 7... Bxe4 {[%clk 0:02:10.7]} 8. Nxe4 {[%clk 0:02:46.4]} 8... Nxe4 {[%clk 0:02:16.8]} 9. Bd3 {[%clk 0:02:57]} 9... Nd6 {[%clk 0:02:27]} 10. Qg5 {[%clk 0:02:45.2]} 10... Nxd4 {[%clk 0:02:22.3]} 11. Qxd8+ {[%clk 0:02:55.1]} 11... Rxd8 {[%clk 0:02:32.5]} 12. Be3 {[%clk 0:03:03.1]} 12... N6f5 {[%clk 0:02:30]} 13. Bxf5 {[%clk 0:03:11.1]} 13... Nxf5 {[%clk 0:02:41]} 14. Bf2 {[%clk 0:03:18.4]} 14... b6 {[%clk 0:02:42.8]} 15. Nf3 {[%clk 0:03:29]} 15... Bc5 {[%clk 0:02:50.6]} 16. O-O {[%clk 0:03:37.6]} 16... Bd6 {[%clk 0:02:50.3]} 17. a4 {[%clk 0:03:42.2]} 17... O-O {[%clk 0:02:58.8]} 18. a5 {[%clk 0:03:52.8]} 18... Ne7 {[%clk 0:03:02.2]} 19. axb6 {[%clk 0:04:00.4]} 19... axb6 {[%clk 0:03:13.4]} 20. Ra7 {[%clk 0:03:31.9]} 20... f5 {[%clk 0:03:16.6]} 21. Re1 {[%clk 0:03:34.3]} 21... Rf6 {[%clk 0:02:54.5]} 22. Bh4 {[%clk 0:03:40.6]} 22... Rh6 {[%clk 0:02:28.4]} 23. Bg5 {[%clk 0:03:44.1]} 23... Rg6 {[%clk 0:02:24.7]} 24. Rd1 {[%clk 0:03:46.9]} 24... h6 {[%clk 0:02:33.4]} 25. Bxe7 {[%clk 0:03:56.5]} 25... Bxe7 {[%clk 0:02:44.6]} 26. Rxd8+ {[%clk 0:03:56.3]} 26... Bxd8 {[%clk 0:02:55.1]} 27. Ra8 {[%clk 0:04:06.7]} 27... Kh7 {[%clk 0:02:36.4]} 28. Rxd8 {[%clk 0:04:08.1]} 28... c6 {[%clk 0:02:47.4]} 29. Rd6 {[%clk 0:04:08.7]} 29... h5 {[%clk 0:02:32.8]} 30. Rxc6 {[%clk 0:04:17.4]} 30... h4 {[%clk 0:02:40.1]} 31. Nxh4 {[%clk 0:04:24.5]} 31... Rg4 {[%clk 0:02:51.5]} 32. Nf3 {[%clk 0:04:29.2]} 32... Rb4 {[%clk 0:03:01.3]} 33. b3 {[%clk 0:04:34.9]} 33... Kh6 {[%clk 0:02:57.2]} 34. Rxe6+ {[%clk 0:04:43.2]} 34... g6 {[%clk 0:03:06.7]} 35. Ne5 {[%clk 0:04:48.6]} 35... Kg5 {[%clk 0:03:09.5]} 36. Rxg6+ {[%clk 0:04:41.6]} 36... Kf4 {[%clk 0:03:16]} 37. Nc4 {[%clk 0:04:26.8]} 37... Ke4 {[%clk 0:03:15.2]} 38. Rxb6 {[%clk 0:04:25.4]} 38... Rxb6 {[%clk 0:03:15.7]} 39. Nxb6 {[%clk 0:04:35.2]} 39... Ke3 {[%clk 0:01:05.9]} 40. Kf1 {[%clk 0:04:39.8]} 40... f4 {[%clk 0:01:14.5]} 41. h4 {[%clk 0:04:40.4]} 41... f3 {[%clk 0:01:22.7]} 42. gxf3 {[%clk 0:04:50.2]} 42... Kxf3 {[%clk 0:01:34.3]} 43. h5 {[%clk 0:05:01.2]} 43... Ke3 {[%clk 0:01:41.6]} 44. h6 {[%clk 0:05:11.6]} 44... Kd2 {[%clk 0:01:53.3]} 45. h7 {[%clk 0:05:19.4]} 45... Kc3 {[%clk 0:02:04.9]} 46. h8=Q+ {[%clk 0:05:28.6]} 46... Kd2 {[%clk 0:02:16.6]} 47. c4 {[%clk 0:05:33]} 47... Kd3 {[%clk 0:02:25.1]} 48. c5 {[%clk 0:05:41.7]} 48... Kd2 {[%clk 0:02:28.6]} 49. c6 {[%clk 0:05:37]} 49... Kd3 {[%clk 0:02:27.2]} 50. c7 {[%clk 0:05:41.4]} 50... Kd2 {[%clk 0:02:36.6]} 51. Qd4+ {[%clk 0:05:45.5]} 51... Kc1 {[%clk 0:02:39.5]} 52. c8=Q+ {[%clk 0:05:55.2]} 52... Kb1 {[%clk 0:02:50.6]} 53. b4 {[%clk 0:05:43.5]} 53... Ka2 {[%clk 0:02:56.4]} 54. b5 {[%clk 0:05:46]} 54... Kb3 {[%clk 0:03:01.5]} 55. Nd7 {[%clk 0:05:48]} 55... Ka2 {[%clk 0:03:06.7]} 56. b6 {[%clk 0:05:56.5]} 56... Ka3 {[%clk 0:03:14.8]} 57. b7 {[%clk 0:06:06.4]} 57... Ka2 {[%clk 0:03:23.2]} 58. Qa8+ {[%clk 0:06:14.5]} 58... Kb1 {[%clk 0:03:30]} 59. b8=Q+ {[%clk 0:06:24.8]} 59... Kc2 {[%clk 0:03:40.8]} 60. Qc5+ {[%clk 0:06:30.9]} 60... Kd3 {[%clk 0:03:41.3]} 61. Qbd6# {[%clk 0:06:31.3]} 1-0

[Event "Live Chess"]
[Site "Chess.com"]
[Date "2011.01.24"]
[Round "-"]
[White "rasheed13"]
[Black "hipposcottimus"]
[Result "0-1"]
[CurrentPosition "r4rk1/pbp2ppp/1p6/8/3q4/P2P1P2/1PP2nPP/RNBQR2K w - -"]
[Timezone "UTC"]
[ECO "C44"]
[ECOUrl "https://www.chess.com/openings/Kings-Pawn-Opening-Kings-Knight-Variation-2...Nc6"]
[UTCDate "2011.01.24"]
[UTCTime "01:18:46"]
[WhiteElo "1309"]
[BlackElo "1452"]
[TimeControl "600"]
[Termination "hipposcottimus won by resignation"]
[StartTime "01:18:46"]
[EndDate "2011.01.24"]
[EndTime "01:23:40"]
[Link "https://www.chess.com/game/live/90716625"]

1. e4 {[%clk 0:10:00]} 1... e5 {[%clk 0:10:00]} 2. Nf3 {[%clk 0:09:58.8]} 2... Nc6 {[%clk 0:09:59.6]} 3. Bd3 {[%clk 0:09:57.9]} 3... Nf6 {[%clk 0:09:55.8]} 4. O-O {[%clk 0:09:55.7]} 4... d5 {[%clk 0:09:55]} 5. exd5 {[%clk 0:09:54.1]} 5... Ne7 {[%clk 0:09:39.2]} 6. Nxe5 {[%clk 0:09:50.4]} 6... Nexd5 {[%clk 0:09:33.6]} 7. Re1 {[%clk 0:09:49.6]} 7... Be7 {[%clk 0:09:32.5]} 8. Bc4 {[%clk 0:09:44.4]} 8... O-O {[%clk 0:09:25.7]} 9. a3 {[%clk 0:09:29.9]} 9... b6 {[%clk 0:09:23.5]} 10. Nc6 {[%clk 0:09:26.7]} 10... Qd6 {[%clk 0:09:13.5]} 11. Nxe7+ {[%clk 0:09:24.7]} 11... Nxe7 {[%clk 0:09:08.9]} 12. Qe2 {[%clk 0:09:03.8]} 12... Ned5 {[%clk 0:09:02.7]} 13. Bxd5 {[%clk 0:08:49.2]} 13... Qxd5 {[%clk 0:08:55.2]} 14. Qd1 {[%clk 0:08:45.9]} 14... Bb7 {[%clk 0:08:51.8]} 15. f3 {[%clk 0:08:43.5]} 15... Ng4 {[%clk 0:08:12.4]} 16. d3 {[%clk 0:08:40.1]} 16... Qd4+ {[%clk 0:07:39.8]} 17. Kh1 {[%clk 0:07:42.8]} 17... Nf2+ {[%clk 0:07:32.1]} 0-1

[Event "Live Chess"]
[Site "Chess.com"]
[Date "2011.01.24"]
[Round "-"]
[White "hipposcottimus"]
[Black "rasheed13"]
[Result "1-0"]
[CurrentPosition "1R2k3/R4r2/8/8/2b5/4K3/8/8 b - -"]
[Timezone "UTC"]
[ECO "C55"]
[ECOUrl "https://www.chess.com/openings/Italian-Game-Anti-Fried-Liver-Defense"]
[UTCDate "2011.01.24"]
[UTCTime "01:03:22"]
[WhiteElo "1447"]
[BlackElo "1314"]
[TimeControl "600"]
[Termination "hipposcottimus won by checkmate"]
[StartTime "01:03:22"]
[EndDate "2011.01.24"]
[EndTime "01:18:29"]
[Link "https://www.chess.com/game/live/90713416"]

1. e4 {[%clk 0:10:00]} 1... e5 {[%clk 0:10:00]} 2. Nf3 {[%clk 0:09:57.5]} 2... Nc6 {[%clk 0:09:53.9]} 3. Bc4 {[%clk 0:09:53]} 3... h6 {[%clk 0:09:52.4]} 4. d4 {[%clk 0:09:49.9]} 4... exd4 {[%clk 0:09:50.3]} 5. Nxd4 {[%clk 0:09:48.1]} 5... Nxd4 {[%clk 0:09:49.5]} 6. Qxd4 {[%clk 0:09:46.4]} 6... Nf6 {[%clk 0:09:47.2]} 7. Nc3 {[%clk 0:09:46]} 7... d6 {[%clk 0:09:44.6]} 8. f4 {[%clk 0:09:32.4]} 8... c6 {[%clk 0:09:37.9]} 9. O-O {[%clk 0:09:28.2]} 9... Be7 {[%clk 0:09:22.7]} 10. f5 {[%clk 0:09:23.3]} 10... O-O {[%clk 0:09:20.1]} 11. Qf2 {[%clk 0:09:16.9]} 11... d5 {[%clk 0:09:12.3]} 12. exd5 {[%clk 0:08:57.8]} 12... Nxd5 {[%clk 0:09:05.7]} 13. Qg3 {[%clk 0:08:48.2]} 13... Bg5 {[%clk 0:08:54.6]} 14. Bxd5 {[%clk 0:08:34.9]} 14... cxd5 {[%clk 0:08:51.7]} 15. f6 {[%clk 0:08:28.9]} 15... gxf6 {[%clk 0:08:43.4]} 16. h4 {[%clk 0:08:20.2]} 16... Qb6+ {[%clk 0:08:34.7]} 17. Kh1 {[%clk 0:08:14]} 17... Qa6 {[%clk 0:08:16.8]} 18. Rg1 {[%clk 0:08:02]} 18... d4 {[%clk 0:07:59.8]} 19. Ne4 {[%clk 0:07:50.9]} 19... Kg7 {[%clk 0:07:39.2]} 20. hxg5 {[%clk 0:07:48.8]} 20... hxg5 {[%clk 0:07:36.8]} 21. Nxg5 {[%clk 0:07:34.6]} 21... fxg5 {[%clk 0:07:31]} 22. Bxg5 {[%clk 0:07:33.4]} 22... Rh8+ {[%clk 0:07:28.9]} 23. Bh4+ {[%clk 0:07:30.3]} 23... Kf8 {[%clk 0:07:22.1]} 24. Rge1 {[%clk 0:07:13.8]} 24... Qh6 {[%clk 0:07:18.1]} 25. Kg1 {[%clk 0:06:53.6]} 25... Qxh4 {[%clk 0:07:15.6]} 26. Qd6+ {[%clk 0:06:47.1]} 26... Kg7 {[%clk 0:07:03.7]} 27. Qe5+ {[%clk 0:06:45.7]} 27... Qf6 {[%clk 0:07:00.2]} 28. Qg3+ {[%clk 0:06:36.4]} 28... Kf8 {[%clk 0:06:56.2]} 29. Rf1 {[%clk 0:06:26.8]} 29... Qb6 {[%clk 0:06:52.6]} 30. Rf2 {[%clk 0:06:02.5]} 30... Be6 {[%clk 0:06:42.2]} 31. b3 {[%clk 0:05:29.3]} 31... a5 {[%clk 0:06:37]} 32. a4 {[%clk 0:05:26.7]} 32... Rc8 {[%clk 0:06:26.8]} 33. Re1 {[%clk 0:05:12.1]} 33... Rg8 {[%clk 0:06:18.1]} 34. Qe5 {[%clk 0:04:55.5]} 34... Re8 {[%clk 0:05:32.9]} 35. Rd1 {[%clk 0:03:17.2]} 35... d3 {[%clk 0:05:24.3]} 36. Rxd3 {[%clk 0:02:59.6]} 36... Bc4 {[%clk 0:05:19.3]} 37. Qd6+ {[%clk 0:02:30.3]} 37... Qxd6 {[%clk 0:05:16.7]} 38. Rxd6 {[%clk 0:02:29.5]} 38... Be6 {[%clk 0:05:14.5]} 39. Rb6 {[%clk 0:02:26.6]} 39... Bd5 {[%clk 0:05:08.4]} 40. b4 {[%clk 0:02:16.9]} 40... Re1+ {[%clk 0:05:06]} 41. Kh2 {[%clk 0:02:12]} 41... Rh8+ {[%clk 0:04:57.9]} 42. Kg3 {[%clk 0:02:09.5]} 42... Rg8+ {[%clk 0:04:56.2]} 43. Kh2 {[%clk 0:02:06.8]} 43... Rh8+ {[%clk 0:04:51.7]} 44. Kg3 {[%clk 0:02:05.8]} 44... Rg1 {[%clk 0:04:48.9]} 45. bxa5 {[%clk 0:01:56]} 45... Rg8+ {[%clk 0:04:47.2]} 46. Kh2 {[%clk 0:01:54.4]} 46... Bxg2 {[%clk 0:04:41.8]} 47. Kxg1 {[%clk 0:01:49.5]} 47... Bc6+ {[%clk 0:04:37.9]} 48. Kf1 {[%clk 0:01:45.7]} 48... Bxa4 {[%clk 0:04:36.3]} 49. Rxb7 {[%clk 0:01:39.5]} 49... Bxc2 {[%clk 0:04:33.8]} 50. Rfxf7+ {[%clk 0:01:36.6]} 50... Ke8 {[%clk 0:04:30.3]} 51. a6 {[%clk 0:01:30.9]} 51... Bd3+ {[%clk 0:04:26.9]} 52. Kf2 {[%clk 0:01:25.4]} 52... Bxa6 {[%clk 0:04:25.9]} 53. Ra7 {[%clk 0:01:24.3]} 53... Bc4 {[%clk 0:04:17.4]} 54. Rfb7 {[%clk 0:01:21]} 54... Rf8+ {[%clk 0:04:10.5]} 55. Ke3 {[%clk 0:01:17.9]} 55... Rf7 {[%clk 0:04:05.9]} 56. Rb8# {[%clk 0:01:15.4]} 1-0

[Event "Live Chess"]
[Site "Chess.com"]
[Date "2011.01.24"]
[Round "-"]
[White "hipposcottimus"]
[Black "tickles0815"]
[Result "0-1"]
[CurrentPosition "5rk1/6pp/3p4/1B6/P1Pp4/5P2/3r2qP/1Q2R2K w - -"]
[Timezone "UTC"]
[ECO "B20"]
[ECOUrl "https://www.chess.com/openings/Sicilian-Defense"]
[UTCDate "2011.01.24"]
[UTCTime "00:26:55"]
[WhiteElo "1442"]
[BlackElo "1544"]
[TimeControl "300+5"]
[Termination "tickles0815 won by checkmate"]
[StartTime "00:26:55"]
[EndDate "2011.01.24"]
[EndTime "00:37:48"]
[Link "https://www.chess.com/game/live/90705399"]

1. e4 {[%clk 0:05:00]} 1... c5 {[%clk 0:05:00]} 2. Bb5 {[%clk 0:05:02.3]} 2... a6 {[%clk 0:05:03.2]} 3. Be2 {[%clk 0:05:06.9]} 3... d6 {[%clk 0:05:05.1]} 4. c4 {[%clk 0:05:11.6]} 4... Nc6 {[%clk 0:05:07.1]} 5. Nf3 {[%clk 0:05:14.7]} 5... e5 {[%clk 0:05:10]} 6. d3 {[%clk 0:05:15.7]} 6... f5 {[%clk 0:05:13.9]} 7. exf5 {[%clk 0:05:07.6]} 7... Bxf5 {[%clk 0:05:16.4]} 8. Nc3 {[%clk 0:05:12.4]} 8... Nf6 {[%clk 0:05:19.8]} 9. Bg5 {[%clk 0:05:15.6]} 9... Be7 {[%clk 0:05:23.9]} 10. Bxf6 {[%clk 0:05:19.4]} 10... Bxf6 {[%clk 0:05:26.4]} 11. O-O {[%clk 0:05:24.2]} 11... O-O {[%clk 0:05:30.3]} 12. Nd5 {[%clk 0:05:24.7]} 12... Ne7 {[%clk 0:05:31.1]} 13. Ne3 {[%clk 0:05:27.6]} 13... Be6 {[%clk 0:05:34.1]} 14. Qe1 {[%clk 0:05:29.1]} 14... Nc6 {[%clk 0:05:36.8]} 15. a3 {[%clk 0:05:27.6]} 15... Nd4 {[%clk 0:05:37.4]} 16. b4 {[%clk 0:05:27.4]} 16... Nxf3+ {[%clk 0:05:16.7]} 17. Bxf3 {[%clk 0:05:30.7]} 17... e4 {[%clk 0:05:21]} 18. Bxe4 {[%clk 0:05:33.3]} 18... Bxa1 {[%clk 0:05:24.4]} 19. Bxb7 {[%clk 0:05:35.2]} 19... Rb8 {[%clk 0:05:27.6]} 20. Bxa6 {[%clk 0:05:32.9]} 20... Bd4 {[%clk 0:05:14.3]} 21. Nc2 {[%clk 0:05:20.7]} 21... Bf5 {[%clk 0:03:54]} 22. Nxd4 {[%clk 0:05:10.5]} 22... cxd4 {[%clk 0:03:56.6]} 23. Qd2 {[%clk 0:04:15.9]} 23... Qf6 {[%clk 0:03:33.8]} 24. a4 {[%clk 0:03:50.5]} 24... Bxd3 {[%clk 0:03:17.2]} 25. Qxd3 {[%clk 0:02:41]} 25... Rxb4 {[%clk 0:03:19.2]} 26. Bb5 {[%clk 0:02:28.8]} 26... Rb2 {[%clk 0:03:22.1]} 27. f3 {[%clk 0:02:31.6]} 27... Qf4 {[%clk 0:03:15.9]} 28. Kh1 {[%clk 0:02:15.6]} 28... Rd2 {[%clk 0:03:07.9]} 29. Qb3 {[%clk 0:02:11.3]} 29... Qe3 {[%clk 0:02:54.3]} 30. Qb1 {[%clk 0:01:46.1]} 30... Qe2 {[%clk 0:02:48.3]} 31. Re1 {[%clk 0:01:41.3]} 31... Qxg2# {[%clk 0:02:51.2]} 0-1

[Event "Live Chess"]
[Site "Chess.com"]
[Date "2011.01.24"]
[Round "-"]
[White "tickles0815"]
[Black "hipposcottimus"]
[Result "1-0"]
[CurrentPosition "6k1/p1r1R1pp/1b6/1P2Bp2/8/8/5PPP/R5K1 w - -"]
[Timezone "UTC"]
[ECO "C61"]
[ECOUrl "https://www.chess.com/openings/Ruy-Lopez-Opening-Birds-Defense"]
[UTCDate "2011.01.24"]
[UTCTime "00:13:03"]
[WhiteElo "1544"]
[BlackElo "1442"]
[TimeControl "300+5"]
[Termination "tickles0815 won by resignation"]
[StartTime "00:13:03"]
[EndDate "2011.01.24"]
[EndTime "00:26:50"]
[Link "https://www.chess.com/game/live/90702239"]

1. e4 {[%clk 0:05:00]} 1... e5 {[%clk 0:05:00]} 2. Nf3 {[%clk 0:05:03.6]} 2... Nc6 {[%clk 0:05:04.5]} 3. Bb5 {[%clk 0:05:07.3]} 3... Nd4 {[%clk 0:05:03.3]} 4. a4 {[%clk 0:05:10.7]} 4... Nxb5 {[%clk 0:05:06.6]} 5. axb5 {[%clk 0:05:14.9]} 5... c6 {[%clk 0:05:02.5]} 6. Nc3 {[%clk 0:05:16.3]} 6... d5 {[%clk 0:05:00.8]} 7. bxc6 {[%clk 0:05:18.7]} 7... bxc6 {[%clk 0:05:04.4]} 8. Nxe5 {[%clk 0:05:13.8]} 8... Nf6 {[%clk 0:04:54]} 9. Nxc6 {[%clk 0:05:16.2]} 9... Qd6 {[%clk 0:04:39.1]} 10. e5 {[%clk 0:05:08]} 10... Qxc6 {[%clk 0:04:34]} 11. exf6 {[%clk 0:05:11.8]} 11... Qxf6 {[%clk 0:04:37.2]} 12. Nxd5 {[%clk 0:05:15.3]} 12... Qe6+ {[%clk 0:04:04.4]} 13. Ne3 {[%clk 0:05:18.3]} 13... Bd6 {[%clk 0:04:01.7]} 14. Qf3 {[%clk 0:05:15.9]} 14... Rb8 {[%clk 0:03:33.1]} 15. Qd5 {[%clk 0:05:18.6]} 15... O-O {[%clk 0:03:29.7]} 16. Qxe6 {[%clk 0:05:17.8]} 16... Bxe6 {[%clk 0:03:30.9]} 17. O-O {[%clk 0:05:20.3]} 17... Bc5 {[%clk 0:03:28.1]} 18. c3 {[%clk 0:04:44.8]} 18... Bb6 {[%clk 0:03:30.7]} 19. d4 {[%clk 0:04:48.4]} 19... f5 {[%clk 0:03:29.7]} 20. d5 {[%clk 0:04:12.3]} 20... Bc8 {[%clk 0:03:16.9]} 21. Nc4 {[%clk 0:04:10.9]} 21... Rb7 {[%clk 0:03:09.2]} 22. d6 {[%clk 0:03:34.6]} 22... Be6 {[%clk 0:03:01.4]} 23. Ne5 {[%clk 0:03:25.4]} 23... Bc5 {[%clk 0:02:56.6]} 24. Rd1 {[%clk 0:03:06.9]} 24... Rd8 {[%clk 0:02:46.8]} 25. d7 {[%clk 0:02:02.2]} 25... Bxd7 {[%clk 0:02:44.7]} 26. Nc6 {[%clk 0:01:44.3]} 26... Re8 {[%clk 0:02:21.7]} 27. b4 {[%clk 0:01:38.8]} 27... Bb6 {[%clk 0:02:05.3]} 28. b5 {[%clk 0:01:23.3]} 28... Rc7 {[%clk 0:01:50.9]} 29. Bf4 {[%clk 0:01:17.2]} 29... Rcc8 {[%clk 0:01:24.3]} 30. Rxd7 {[%clk 0:01:16.6]} 30... Re4 {[%clk 0:01:06]} 31. Ne7+ {[%clk 0:01:01.5]} 31... Rxe7 {[%clk 0:01:03.2]} 32. Rxe7 {[%clk 0:01:03.3]} 32... Rxc3 {[%clk 0:01:07.9]} 33. Be5 {[%clk 0:01:06]} 33... Rc7 {[%clk 0:00:54.3]} 1-0

[Event "Live Chess"]
[Site "Chess.com"]
[Date "2011.01.24"]
[Round "-"]
[White "Alto11"]
[Black "hipposcottimus"]
[Result "0-1"]
[CurrentPosition "r1b2rk1/p1p3pp/2pb4/3n4/3Np3/1P6/PBP2PPq/RN2QRK1 w - -"]
[Timezone "UTC"]
[ECO "C55"]
[ECOUrl "https://www.chess.com/openings/Italian-Game-Two-Knights-Modern-Bishops-Opening-4...d5-5.exd5-Nxd5"]
[UTCDate "2011.01.24"]
[UTCTime "00:04:55"]
[WhiteElo "1399"]
[BlackElo "1442"]
[TimeControl "600+2"]
[Termination "hipposcottimus won by checkmate"]
[StartTime "00:04:55"]
[EndDate "2011.01.24"]
[EndTime "00:08:21"]
[Link "https://www.chess.com/game/live/90700396"]

1. e4 {[%clk 0:10:00]} 1... e5 {[%clk 0:10:00]} 2. Nf3 {[%clk 0:09:59]} 2... Nc6 {[%clk 0:10:00.6]} 3. Bc4 {[%clk 0:09:48.2]} 3... Nf6 {[%clk 0:09:59.5]} 4. d3 {[%clk 0:09:47.6]} 4... d5 {[%clk 0:10:00]} 5. exd5 {[%clk 0:09:45.3]} 5... Nxd5 {[%clk 0:09:53.2]} 6. Bb5 {[%clk 0:09:44.3]} 6... Bd6 {[%clk 0:09:49]} 7. O-O {[%clk 0:09:34.3]} 7... O-O {[%clk 0:09:48.6]} 8. Bxc6 {[%clk 0:09:34]} 8... bxc6 {[%clk 0:09:49.5]} 9. b3 {[%clk 0:09:26.7]} 9... f5 {[%clk 0:09:50.5]} 10. Bb2 {[%clk 0:09:23.4]} 10... e4 {[%clk 0:09:45.8]} 11. dxe4 {[%clk 0:09:21.7]} 11... fxe4 {[%clk 0:09:47]} 12. Nd4 {[%clk 0:09:13.1]} 12... Qh4 {[%clk 0:08:58.2]} 13. Qe1 {[%clk 0:08:38.4]} 13... Qxh2# {[%clk 0:08:54.3]} 0-1